[Event "Early-Titled-Tuesday-Blitz-April-23-2024"]
[Site "Chess.com"]
[Date "2024.04.23"]
[Round "7"]
[White "TacticalSam94"]
[Black "N_I_Chess"]
[Result "0-1"]
[WhiteElo "2187"]
[BlackElo "2374"]
[TimeControl "180+1"]
[EndTime "9:21:05 PDT"]
[Termination "N_I_Chess won by checkmate"]

1. e4 {[%clk 0:03:00.9]} 1... Nf6 {[%clk 0:02:54]} 2. e5 {[%clk 0:03:00.3]} 2...
Nd5 {[%clk 0:02:52.1]} 3. Nf3 {[%clk 0:02:59.4]} 3... d6 {[%clk 0:02:51.8]} 4.
d4 {[%clk 0:02:56.9]} 4... g6 {[%clk 0:02:49.4]} 5. Bc4 {[%clk 0:02:56.1]} 5...
Nb6 {[%clk 0:02:47.6]} 6. Bb3 {[%clk 0:02:56.2]} 6... Bg7 {[%clk 0:02:47.5]} 7.
Qe2 {[%clk 0:02:55.8]} 7... d5 {[%clk 0:02:45.9]} 8. h3 {[%clk 0:02:54.9]} 8...
O-O {[%clk 0:02:44.7]} 9. O-O {[%clk 0:02:53.6]} 9... Na6 {[%clk 0:02:30]} 10.
Bg5 {[%clk 0:02:44.8]} 10... c5 {[%clk 0:02:24.1]} 11. c3 {[%clk 0:02:44.5]}
11... cxd4 {[%clk 0:02:21.6]} 12. Nxd4 {[%clk 0:02:39.5]} 12... Nc5 {[%clk
0:02:17.1]} 13. Bc2 {[%clk 0:02:39.1]} 13... a6 {[%clk 0:01:53]} 14. Nd2 {[%clk
0:02:38.5]} 14... Qc7 {[%clk 0:01:52.5]} 15. Bf4 {[%clk 0:02:33.9]} 15... Ne6
{[%clk 0:01:49.7]} 16. Nxe6 {[%clk 0:02:31.4]} 16... Bxe6 {[%clk 0:01:50.6]} 17.
Bh2 {[%clk 0:02:23.7]} 17... Rfd8 {[%clk 0:01:47.1]} 18. Nb3 {[%clk 0:02:23.6]}
18... Nc4 {[%clk 0:01:45.4]} 19. Rae1 {[%clk 0:02:21.2]} 19... Nxb2 {[%clk
0:01:42.2]} 20. Nd4 {[%clk 0:02:20.8]} 20... Nc4 {[%clk 0:00:46]} 21. h4 {[%clk
0:02:13.2]} 21... Qd7 {[%clk 0:00:37.8]} 22. h5 {[%clk 0:02:11]} 22... Rac8
{[%clk 0:00:33.6]} 23. hxg6 {[%clk 0:02:10.8]} 23... hxg6 {[%clk 0:00:32.4]} 24.
f4 {[%clk 0:02:09.1]} 24... Bg4 {[%clk 0:00:31.9]} 25. e6 {[%clk 0:02:07.3]}
25... Bxd4+ {[%clk 0:00:25.7]} 26. cxd4 {[%clk 0:02:06.5]} 26... Qxe6 {[%clk
0:00:18.1]} 27. Qxe6 {[%clk 0:02:03]} 27... Bxe6 {[%clk 0:00:16.4]} 28. Bxg6
{[%clk 0:02:03]} 28... Nd2 {[%clk 0:00:11.1]} 29. Rf2 {[%clk 0:01:57.3]} 29...
fxg6 {[%clk 0:00:10.3]} 30. Rxd2 {[%clk 0:01:53.5]} 30... Kf7 {[%clk 0:00:08.3]}
31. Rde2 {[%clk 0:01:51.8]} 31... Rc6 {[%clk 0:00:08.9]} 32. Bg3 {[%clk
0:01:50.1]} 32... Rd7 {[%clk 0:00:08.8]} 33. Bh4 {[%clk 0:01:49.5]} 33... b5
{[%clk 0:00:05.9]} 34. Bg5 {[%clk 0:01:49.1]} 34... b4 {[%clk 0:00:05.1]} 35.
Kf2 {[%clk 0:01:49.2]} 35... a5 {[%clk 0:00:04.5]} 36. Rh1 {[%clk 0:01:49.4]}
36... Kg7 {[%clk 0:00:03.5]} 37. Bh6+ {[%clk 0:01:44.3]} 37... Kf7 {[%clk
0:00:02.9]} 38. Bg5 {[%clk 0:01:45.2]} 38... Kg8 {[%clk 0:00:03.2]} 39. Rhe1
{[%clk 0:01:33.4]} 39... Bf5 {[%clk 0:00:02.2]} 40. Rxe7 {[%clk 0:01:32.2]}
40... Rxe7 {[%clk 0:00:02.7]} 41. Rxe7 {[%clk 0:01:33.1]} 41... Rc2+ {[%clk
0:00:02.4]} 42. Kg3 {[%clk 0:01:32]} 42... Be4 {[%clk 0:00:01.8]} 43. Ra7 {[%clk
0:01:22.9]} 43... Rxg2+ {[%clk 0:00:01.9]} 44. Kh4 {[%clk 0:01:22.9]} 44... Rxa2
{[%clk 0:00:02.8]} 45. Bf6 {[%clk 0:01:16.9]} 45... b3 {[%clk 0:00:02.8]} 46.
Kg5 {[%clk 0:01:16.8]} 46... b2 {[%clk 0:00:02.5]} 47. Be5 {[%clk 0:00:54.8]}
47... b1=Q {[%clk 0:00:01.5]} 48. Ra8+ {[%clk 0:00:49.2]} 48... Kf7 {[%clk
0:00:01.5]} 49. Ra7+ {[%clk 0:00:48.9]} 49... Ke8 {[%clk 0:00:02]} 50. Ra8+
{[%clk 0:00:44.9]} 50... Kd7 {[%clk 0:00:02.2]} 51. Rb8 {[%clk 0:00:43.3]} 51...
Qxb8 {[%clk 0:00:01.2]} 52. Bxb8 {[%clk 0:00:44.2]} 52... a4 {[%clk 0:00:02]}
53. Kf6 {[%clk 0:00:44.9]} 53... Re2 {[%clk 0:00:02.6]} 54. f5 {[%clk
0:00:45.8]} 54... Bxf5 {[%clk 0:00:03.5]} 55. Bf4 {[%clk 0:00:39.8]} 55... a3
{[%clk 0:00:03.3]} 56. Bc1 {[%clk 0:00:40.7]} 56... a2 {[%clk 0:00:04.2]} 57.
Bb2 {[%clk 0:00:41]} 57... Rg2 {[%clk 0:00:04.6]} 58. Ba1 {[%clk 0:00:40.3]}
58... Rg1 {[%clk 0:00:05.5]} 59. Kf7 {[%clk 0:00:37.6]} 59... Rb1 {[%clk
0:00:06.4]} 60. Bc3 {[%clk 0:00:36.9]} 60... a1=Q {[%clk 0:00:06.9]} 61. Bxa1
{[%clk 0:00:36.8]} 61... Rxa1 {[%clk 0:00:07.8]} 62. Kf6 {[%clk 0:00:37.6]}
62... Re1 {[%clk 0:00:08.7]} 63. Kg7 {[%clk 0:00:38.5]} 63... Re4 {[%clk
0:00:09.4]} 64. Kh6 {[%clk 0:00:39.4]} 64... Rxd4 {[%clk 0:00:10.3]} 65. Kg5
{[%clk 0:00:40.3]} 65... Re4 {[%clk 0:00:11.2]} 66. Kf6 {[%clk 0:00:41.2]} 66...
d4 {[%clk 0:00:12.1]} 67. Kg7 {[%clk 0:00:42.1]} 67... d3 {[%clk 0:00:13]} 68.
Kh6 {[%clk 0:00:43]} 68... d2 {[%clk 0:00:13.8]} 69. Kg5 {[%clk 0:00:43.9]}
69... d1=Q {[%clk 0:00:12.8]} 70. Kf6 {[%clk 0:00:44.8]} 70... Qd6+ {[%clk
0:00:12.7]} 71. Kg7 {[%clk 0:00:45.7]} 71... Qe7+ {[%clk 0:00:12.1]} 72. Kh6
{[%clk 0:00:46.6]} 72... Rh4# {[%clk 0:00:12.7]} 0-1

[Event "Early-Titled-Tuesday-Blitz-April-23-2024"]
[Site "Chess.com"]
[Date "2024.04.23"]
[Round "7"]
[White "jumpingknight20"]
[Black "KubaGepard"]
[Result "1/2-1/2"]
[WhiteElo "2743"]
[BlackElo "2612"]
[TimeControl "180+1"]
[EndTime "9:21:07 PDT"]
[Termination "Game drawn - insufficient material"]

1. Nf3 {[%clk 0:03:00.9]} 1... d5 {[%clk 0:02:59.7]} 2. g3 {[%clk 0:03:01.3]}
2... Nf6 {[%clk 0:02:59.6]} 3. Bg2 {[%clk 0:03:01.9]} 3... g6 {[%clk 0:02:59.5]}
4. O-O {[%clk 0:03:02.5]} 4... Bg7 {[%clk 0:03:00.4]} 5. d3 {[%clk 0:03:01.5]}
5... O-O {[%clk 0:03:00.6]} 6. Nbd2 {[%clk 0:03:02.1]} 6... b6 {[%clk
0:02:58.2]} 7. e4 {[%clk 0:03:01.9]} 7... Bb7 {[%clk 0:02:56.7]} 8. e5 {[%clk
0:02:54]} 8... Nfd7 {[%clk 0:02:56.8]} 9. e6 {[%clk 0:02:50.3]} 9... fxe6 {[%clk
0:02:54.4]} 10. Ng5 {[%clk 0:02:49.7]} 10... Rf6 {[%clk 0:02:52.5]} 11. d4
{[%clk 0:02:27.9]} 11... h6 {[%clk 0:02:37.5]} 12. Ngf3 {[%clk 0:02:25.7]} 12...
c5 {[%clk 0:02:35.3]} 13. c3 {[%clk 0:02:22.9]} 13... Nc6 {[%clk 0:02:33.5]} 14.
Re1 {[%clk 0:02:23.5]} 14... Kh7 {[%clk 0:02:21.9]} 15. Nf1 {[%clk 0:02:16.3]}
15... Qg8 {[%clk 0:02:21.1]} 16. Ne3 {[%clk 0:02:12.8]} 16... Raf8 {[%clk
0:02:18.6]} 17. Ng4 {[%clk 0:02:08.5]} 17... Rf5 {[%clk 0:02:17.4]} 18. Nh4
{[%clk 0:02:05.8]} 18... Rh5 {[%clk 0:02:12.4]} 19. Qd3 {[%clk 0:01:57.1]} 19...
Qf7 {[%clk 0:02:11.3]} 20. Be3 {[%clk 0:01:48]} 20... e5 {[%clk 0:02:08]} 21.
Bxd5 {[%clk 0:01:27.6]} 21... Qxd5 {[%clk 0:01:54.7]} 22. Qxg6+ {[%clk
0:01:27.3]} 22... Kg8 {[%clk 0:01:54]} 23. Qxh5 {[%clk 0:01:11.2]} 23... Nxd4
{[%clk 0:01:51.2]} 24. f3 {[%clk 0:01:11]} 24... Nxf3+ {[%clk 0:01:50.2]} 25.
Nxf3 {[%clk 0:01:11.2]} 25... Qxf3 {[%clk 0:01:49.4]} 26. Nxh6+ {[%clk
0:01:10.5]} 26... Bxh6 {[%clk 0:01:42.6]} 27. Qxf3 {[%clk 0:01:10.9]} 27... Rxf3
{[%clk 0:01:39.1]} 28. Bxh6 {[%clk 0:01:11.3]} 28... e4 {[%clk 0:01:38.9]} 29.
Bf4 {[%clk 0:01:08.8]} 29... e5 {[%clk 0:01:35.5]} 30. Be3 {[%clk 0:01:06.2]}
30... Ba6 {[%clk 0:01:35.3]} 31. Rad1 {[%clk 0:00:59.3]} 31... Bd3 {[%clk
0:01:34]} 32. Kg2 {[%clk 0:00:59.9]} 32... c4 {[%clk 0:01:32.4]} 33. b3 {[%clk
0:00:58.4]} 33... b5 {[%clk 0:01:32]} 34. Bxa7 {[%clk 0:00:45.1]} 34... cxb3
{[%clk 0:01:27.2]} 35. axb3 {[%clk 0:00:46]} 35... Kf7 {[%clk 0:01:26]} 36. c4
{[%clk 0:00:41.3]} 36... bxc4 {[%clk 0:01:25.8]} 37. bxc4 {[%clk 0:00:42.2]}
37... Ke6 {[%clk 0:01:26.2]} 38. c5 {[%clk 0:00:41.7]} 38... Kd5 {[%clk
0:01:25.2]} 39. Rxe4 {[%clk 0:00:20]} 39... Kxe4 {[%clk 0:01:11.8]} 40. c6
{[%clk 0:00:20.5]} 40... Rf8 {[%clk 0:01:07.9]} 41. cxd7 {[%clk 0:00:17.7]}
41... Rd8 {[%clk 0:01:07.5]} 42. Re1+ {[%clk 0:00:12.8]} 42... Kd5 {[%clk
0:01:06.8]} 43. Be3 {[%clk 0:00:09.2]} 43... Rxd7 {[%clk 0:01:05.2]} 44. g4
{[%clk 0:00:08.2]} 44... Ke6 {[%clk 0:00:57.4]} 45. Kg3 {[%clk 0:00:08.3]} 45...
Rf7 {[%clk 0:00:55.2]} 46. Bd4 {[%clk 0:00:05.6]} 46... e4 {[%clk 0:00:52.4]}
47. Re3 {[%clk 0:00:05.8]} 47... Kd5 {[%clk 0:00:42.7]} 48. Bc3 {[%clk
0:00:05.7]} 48... Kc4 {[%clk 0:00:42]} 49. Be1 {[%clk 0:00:06]} 49... Kd4 {[%clk
0:00:40.9]} 50. Bf2 {[%clk 0:00:06.6]} 50... Kd5 {[%clk 0:00:41.3]} 51. h4
{[%clk 0:00:06.8]} 51... Bc2 {[%clk 0:00:39.6]} 52. Rc3 {[%clk 0:00:04.2]} 52...
Bd1 {[%clk 0:00:38.2]} 53. Rc5+ {[%clk 0:00:03.2]} 53... Kd6 {[%clk 0:00:38.3]}
54. Rf5 {[%clk 0:00:02.5]} 54... Rxf5 {[%clk 0:00:37.6]} 55. gxf5 {[%clk
0:00:02.4]} 55... Ke5 {[%clk 0:00:38.3]} 56. Be3 {[%clk 0:00:02.6]} 56... Kxf5
{[%clk 0:00:38.5]} 57. Bf4 {[%clk 0:00:03.2]} 57... Bh5 {[%clk 0:00:38.6]} 58.
Be3 {[%clk 0:00:04.1]} 58... Bf7 {[%clk 0:00:37.6]} 59. Bf4 {[%clk 0:00:04.1]}
59... Ke6 {[%clk 0:00:38.1]} 60. Be3 {[%clk 0:00:05]} 60... Ke5 {[%clk
0:00:38.3]} 61. Kg4 {[%clk 0:00:04.2]} 61... Kd5 {[%clk 0:00:37.3]} 62. Kf5
{[%clk 0:00:04]} 62... Bh5 {[%clk 0:00:36]} 63. Kg5 {[%clk 0:00:04.3]} 63... Bf3
{[%clk 0:00:35.9]} 64. h5 {[%clk 0:00:03.3]} 64... Bxh5 {[%clk 0:00:35.6]} 65.
Kxh5 {[%clk 0:00:03.2]} 65... Kc4 {[%clk 0:00:36.5]} 66. Kg4 {[%clk 0:00:01.9]}
66... Kd3 {[%clk 0:00:37.4]} 67. Kf4 {[%clk 0:00:00.9]} 67... Ke2 {[%clk
0:00:36.2]} 68. Kxe4 {[%clk 0:00:00.8]} 1/2-1/2

[Event "Early-Titled-Tuesday-Blitz-April-23-2024"]
[Site "Chess.com"]
[Date "2024.04.23"]
[Round "7"]
[White "NovakRatko"]
[Black "Ural_bogatyr"]
[Result "0-1"]
[WhiteElo "2387"]
[BlackElo "2570"]
[TimeControl "180+1"]
[EndTime "9:21:10 PDT"]
[Termination "Ural_bogatyr won on time"]

1. d4 {[%clk 0:02:59.7]} 1... Nf6 {[%clk 0:02:58.6]} 2. c4 {[%clk 0:03:00.1]}
2... e6 {[%clk 0:02:58.3]} 3. Bg5 {[%clk 0:02:59.8]} 3... d5 {[%clk 0:02:58]} 4.
Nc3 {[%clk 0:02:59.7]} 4... Be7 {[%clk 0:02:57.1]} 5. Nf3 {[%clk 0:02:59.6]}
5... h6 {[%clk 0:02:56.1]} 6. Bxf6 {[%clk 0:02:59.1]} 6... Bxf6 {[%clk 0:02:57]}
7. e4 {[%clk 0:02:58.8]} 7... c6 {[%clk 0:02:51.4]} 8. e5 {[%clk 0:02:57.9]}
8... Be7 {[%clk 0:02:50.3]} 9. cxd5 {[%clk 0:02:58.1]} 9... exd5 {[%clk
0:02:50.2]} 10. Bd3 {[%clk 0:02:57.4]} 10... O-O {[%clk 0:02:46.4]} 11. h3
{[%clk 0:02:57.4]} 11... f5 {[%clk 0:02:21]} 12. Qc2 {[%clk 0:02:50.8]} 12...
Be6 {[%clk 0:02:19]} 13. O-O {[%clk 0:02:49.7]} 13... Nd7 {[%clk 0:02:15.2]} 14.
Nh2 {[%clk 0:02:45.1]} 14... a5 {[%clk 0:02:03.1]} 15. f4 {[%clk 0:02:44.1]}
15... b5 {[%clk 0:02:01.3]} 16. g4 {[%clk 0:02:43.5]} 16... g6 {[%clk
0:02:00.2]} 17. Qg2 {[%clk 0:02:37]} 17... Kh7 {[%clk 0:01:57.6]} 18. Kh1 {[%clk
0:02:29.3]} 18... a4 {[%clk 0:01:48.8]} 19. a3 {[%clk 0:02:28.2]} 19... Qb6
{[%clk 0:01:36.5]} 20. Ne2 {[%clk 0:02:27.3]} 20... Rf7 {[%clk 0:01:31.7]} 21.
Rg1 {[%clk 0:02:24.3]} 21... Rg8 {[%clk 0:01:27.1]} 22. gxf5 {[%clk 0:02:18.9]}
22... Bxf5 {[%clk 0:01:26.2]} 23. Bxf5 {[%clk 0:02:16.2]} 23... Rxf5 {[%clk
0:01:27.1]} 24. Qg4 {[%clk 0:02:04.1]} 24... h5 {[%clk 0:01:13.2]} 25. Qg2
{[%clk 0:01:56.1]} 25... Nf8 {[%clk 0:01:07.2]} 26. Nf3 {[%clk 0:01:22.6]} 26...
Ne6 {[%clk 0:01:06]} 27. Raf1 {[%clk 0:01:16.9]} 27... Qd8 {[%clk 0:01:00.6]}
28. Qg3 {[%clk 0:01:02.6]} 28... Qf8 {[%clk 0:00:58.5]} 29. h4 {[%clk
0:00:55.7]} 29... Nxf4 {[%clk 0:00:53.2]} 30. Nxf4 {[%clk 0:00:21.5]} 30... Rxf4
{[%clk 0:00:52.2]} 31. Nh2 {[%clk 0:00:21.8]} 31... Rf5 {[%clk 0:00:43.9]} 32.
e6 {[%clk 0:00:18.3]} 32... Qf6 {[%clk 0:00:41.4]} 33. Rxf5 {[%clk 0:00:16.1]}
33... Qxf5 {[%clk 0:00:41.6]} 34. Qc7 {[%clk 0:00:16.4]} 34... Qxe6 {[%clk
0:00:41]} 35. Rf1 {[%clk 0:00:14.9]} 35... Qe4+ {[%clk 0:00:39.2]} 36. Kg1
{[%clk 0:00:14.8]} 36... Qe6 {[%clk 0:00:33]} 37. Kg2 {[%clk 0:00:12.3]} 37...
Rg7 {[%clk 0:00:32.3]} 38. Qf4 {[%clk 0:00:11]} 38... Bd6 {[%clk 0:00:28.7]} 39.
Qf3 {[%clk 0:00:09.7]} 39... Re7 {[%clk 0:00:26.2]} 40. Rf2 {[%clk 0:00:07.4]}
40... Qe4 {[%clk 0:00:23.1]} 41. Qxe4 {[%clk 0:00:06]} 41... dxe4 {[%clk
0:00:23.3]} 42. Nf3 {[%clk 0:00:06.6]} 42... exf3+ {[%clk 0:00:23]} 43. Rxf3
{[%clk 0:00:06.5]} 43... Kg7 {[%clk 0:00:21.9]} 44. Rc3 {[%clk 0:00:05.4]} 44...
Rc7 {[%clk 0:00:20.9]} 45. Kf3 {[%clk 0:00:05.1]} 45... Kf6 {[%clk 0:00:20.9]}
46. Ke4 {[%clk 0:00:05.4]} 46... Ke6 {[%clk 0:00:21]} 47. Rc2 {[%clk 0:00:05.7]}
47... Bf8 {[%clk 0:00:19.7]} 48. Rg2 {[%clk 0:00:05.8]} 48... Kf7 {[%clk
0:00:18.6]} 49. Rf2+ {[%clk 0:00:06.2]} 49... Kg7 {[%clk 0:00:18.7]} 50. Rc2
{[%clk 0:00:07]} 50... Bd6 {[%clk 0:00:18.3]} 51. Re2 {[%clk 0:00:06.8]} 51...
Bg3 {[%clk 0:00:18.1]} 52. Rc2 {[%clk 0:00:06.7]} 52... Bxh4 {[%clk 0:00:16.6]}
53. d5 {[%clk 0:00:07]} 53... Re7+ {[%clk 0:00:16.3]} 54. Kd4 {[%clk 0:00:06.3]}
54... cxd5 {[%clk 0:00:15.2]} 55. Kxd5 {[%clk 0:00:06.5]} 55... Bf6 {[%clk
0:00:15.1]} 56. Rf2 {[%clk 0:00:03.9]} 56... h4 {[%clk 0:00:14.6]} 57. Kc5
{[%clk 0:00:04.2]} 57... Re5+ {[%clk 0:00:14.2]} 58. Kd6 {[%clk 0:00:04]} 58...
h3 {[%clk 0:00:14.1]} 59. Rh2 {[%clk 0:00:03.8]} 59... Rh5 {[%clk 0:00:14.5]}
60. Ke6 {[%clk 0:00:03.5]} 60... Be5 {[%clk 0:00:13.8]} 61. Rh1 {[%clk
0:00:02.2]} 61... h2 {[%clk 0:00:14]} 0-1

[Event "Early-Titled-Tuesday-Blitz-April-23-2024"]
[Site "Chess.com"]
[Date "2024.04.23"]
[Round "7"]
[White "amylazy"]
[Black "Airquake"]
[Result "1/2-1/2"]
[WhiteElo "2466"]
[BlackElo "2660"]
[TimeControl "180+1"]
[EndTime "9:21:12 PDT"]
[Termination "Game drawn - insufficient material"]

1. d4 {[%clk 0:02:55.2]} 1... Nf6 {[%clk 0:02:59.9]} 2. Nf3 {[%clk 0:02:55.4]}
2... e6 {[%clk 0:03:00]} 3. e3 {[%clk 0:02:55.7]} 3... b6 {[%clk 0:02:57.6]} 4.
Bd3 {[%clk 0:02:56.1]} 4... Bb7 {[%clk 0:02:57.9]} 5. O-O {[%clk 0:02:56.7]}
5... Be7 {[%clk 0:02:58.3]} 6. c4 {[%clk 0:02:57.3]} 6... O-O {[%clk 0:02:58.7]}
7. Nc3 {[%clk 0:02:57.7]} 7... d5 {[%clk 0:02:58.3]} 8. b3 {[%clk 0:02:57.1]}
8... c5 {[%clk 0:02:57.5]} 9. Bb2 {[%clk 0:02:57.3]} 9... Nbd7 {[%clk
0:02:57.4]} 10. cxd5 {[%clk 0:02:55.8]} 10... exd5 {[%clk 0:02:54.1]} 11. Rc1
{[%clk 0:02:55]} 11... Ne4 {[%clk 0:02:52.4]} 12. dxc5 {[%clk 0:02:33.5]} 12...
Ndxc5 {[%clk 0:02:50.7]} 13. Bxe4 {[%clk 0:02:33.3]} 13... dxe4 {[%clk
0:02:48.1]} 14. Nd4 {[%clk 0:02:31.3]} 14... Ba6 {[%clk 0:02:27.6]} 15. Ncb5
{[%clk 0:02:29]} 15... Bf6 {[%clk 0:02:01.2]} 16. a4 {[%clk 0:02:14.2]} 16...
Nd3 {[%clk 0:01:25.8]} 17. Rc2 {[%clk 0:02:13.6]} 17... Bxb5 {[%clk 0:01:19.4]}
18. axb5 {[%clk 0:02:12.9]} 18... Qd5 {[%clk 0:01:15.6]} 19. Ba3 {[%clk
0:01:50.9]} 19... Rfe8 {[%clk 0:01:10.1]} 20. Rc4 {[%clk 0:01:37.2]} 20... Bxd4
{[%clk 0:00:58.2]} 21. Rxd4 {[%clk 0:01:36.7]} 21... Qxb5 {[%clk 0:00:58.9]} 22.
Qg4 {[%clk 0:01:34.8]} 22... Qxb3 {[%clk 0:00:50.5]} 23. Bd6 {[%clk 0:01:34.2]}
23... Qe6 {[%clk 0:00:48.6]} 24. Qg3 {[%clk 0:01:32.5]} 24... a5 {[%clk
0:00:40.7]} 25. h4 {[%clk 0:01:32.3]} 25... b5 {[%clk 0:00:39.5]} 26. h5 {[%clk
0:01:25.8]} 26... h6 {[%clk 0:00:39.5]} 27. Bc7 {[%clk 0:01:22.9]} 27... a4
{[%clk 0:00:34.7]} 28. Rd6 {[%clk 0:01:22]} 28... Qf5 {[%clk 0:00:27.7]} 29.
Rxh6 {[%clk 0:01:21.1]} 29... a3 {[%clk 0:00:28.2]} 30. Rb6 {[%clk 0:01:12.8]}
30... Re6 {[%clk 0:00:25.6]} 31. h6 {[%clk 0:01:07.4]} 31... Qg6 {[%clk
0:00:21.9]} 32. h7+ {[%clk 0:00:40.7]} 32... Kxh7 {[%clk 0:00:19.7]} 33. Qh3+
{[%clk 0:00:39.6]} 33... Kg8 {[%clk 0:00:19.6]} 34. Rxb5 {[%clk 0:00:38.9]}
34... a2 {[%clk 0:00:19.3]} 35. Ra1 {[%clk 0:00:32.5]} 35... Qf6 {[%clk
0:00:17.8]} 36. Rxa2 {[%clk 0:00:32.3]} 36... Qa1+ {[%clk 0:00:05.1]} 37. Rxa1
{[%clk 0:00:29.9]} 37... Rxa1+ {[%clk 0:00:06]} 38. Kh2 {[%clk 0:00:30.1]} 38...
Rh6 {[%clk 0:00:06.9]} 39. Qxh6 {[%clk 0:00:30.1]} 39... gxh6 {[%clk 0:00:07.8]}
40. Kg3 {[%clk 0:00:27.9]} 40... Kh7 {[%clk 0:00:06.8]} 41. Rb7 {[%clk
0:00:18.9]} 41... Ra2 {[%clk 0:00:06.7]} 42. Bf4 {[%clk 0:00:17.4]} 42... Kg6
{[%clk 0:00:04.4]} 43. Rb6+ {[%clk 0:00:16.7]} 43... f6 {[%clk 0:00:04.5]} 44.
f3 {[%clk 0:00:16.5]} 44... Ne1 {[%clk 0:00:04.9]} 45. fxe4 {[%clk 0:00:15.2]}
45... Rxg2+ {[%clk 0:00:04.3]} 46. Kh3 {[%clk 0:00:15.4]} 46... Rg1 {[%clk
0:00:02.2]} 47. Rb8 {[%clk 0:00:13.7]} 47... Kh7 {[%clk 0:00:01.6]} 48. Rb7+
{[%clk 0:00:13.7]} 48... Kg6 {[%clk 0:00:02]} 49. Rb8 {[%clk 0:00:14.1]} 49...
Kf7 {[%clk 0:00:02.5]} 50. Rh8 {[%clk 0:00:14]} 50... Nf3 {[%clk 0:00:02.5]} 51.
Rxh6 {[%clk 0:00:13.3]} 51... Nd2 {[%clk 0:00:02]} 52. Rh7+ {[%clk 0:00:12.3]}
52... Ke6 {[%clk 0:00:02.1]} 53. Rh8 {[%clk 0:00:11.9]} 53... Nxe4 {[%clk
0:00:02.1]} 54. Re8+ {[%clk 0:00:12.3]} 54... Kf5 {[%clk 0:00:02.5]} 55. Rb8
{[%clk 0:00:12.1]} 55... Rf1 {[%clk 0:00:01.6]} 56. Rb5+ {[%clk 0:00:12.6]}
56... Kg6 {[%clk 0:00:02.2]} 57. Kg2 {[%clk 0:00:12.4]} 57... Rd1 {[%clk
0:00:02.4]} 58. Rb6 {[%clk 0:00:12.7]} 58... Nc3 {[%clk 0:00:02.7]} 59. Kf3
{[%clk 0:00:12.4]} 59... Nd5 {[%clk 0:00:03.1]} 60. Rd6 {[%clk 0:00:12.7]} 60...
Nxe3 {[%clk 0:00:02.8]} 61. Kxe3 {[%clk 0:00:12.7]} 61... Rxd6 {[%clk 0:00:03]}
62. Bxd6 {[%clk 0:00:13.6]} 62... Kg5 {[%clk 0:00:03.9]} 63. Kf3 {[%clk
0:00:13.9]} 63... f5 {[%clk 0:00:04.8]} 64. Bf4+ {[%clk 0:00:14]} 64... Kf6
{[%clk 0:00:05.1]} 65. Kg3 {[%clk 0:00:14.9]} 65... Kg6 {[%clk 0:00:05.6]} 66.
Kf3 {[%clk 0:00:15.8]} 66... Kf7 {[%clk 0:00:06]} 67. Ke3 {[%clk 0:00:15.9]}
67... Ke6 {[%clk 0:00:06.9]} 68. Kd4 {[%clk 0:00:16.8]} 68... Kf6 {[%clk
0:00:06.2]} 69. Kd5 {[%clk 0:00:17.7]} 69... Kg6 {[%clk 0:00:06.8]} 70. Ke5
{[%clk 0:00:18.6]} 70... Kh5 {[%clk 0:00:07.6]} 71. Kxf5 {[%clk 0:00:19.5]}
1/2-1/2

[Event "Early-Titled-Tuesday-Blitz-April-23-2024"]
[Site "Chess.com"]
[Date "2024.04.23"]
[Round "7"]
[White "Dr_Pepper18"]
[Black "M1711"]
[Result "1-0"]
[WhiteElo "2483"]
[BlackElo "2658"]
[TimeControl "180+1"]
[EndTime "9:21:13 PDT"]
[Termination "Dr_Pepper18 won on time"]

1. d4 {[%clk 0:03:00.9]} 1... h6 {[%clk 0:03:00.1]} 2. c4 {[%clk 0:02:56.3]}
2... a6 {[%clk 0:03:00.2]} 3. g3 {[%clk 0:02:55.7]} 3... d6 {[%clk 0:02:59.8]}
4. Bg2 {[%clk 0:02:56]} 4... Nc6 {[%clk 0:02:59]} 5. Nc3 {[%clk 0:02:56.3]} 5...
Bd7 {[%clk 0:02:57.5]} 6. Nf3 {[%clk 0:02:56.7]} 6... e5 {[%clk 0:02:57.6]} 7.
O-O {[%clk 0:02:54]} 7... Nf6 {[%clk 0:02:55.7]} 8. b3 {[%clk 0:02:46.6]} 8...
Be7 {[%clk 0:02:54.8]} 9. Bb2 {[%clk 0:02:46.7]} 9... O-O {[%clk 0:02:54.5]} 10.
dxe5 {[%clk 0:02:45]} 10... dxe5 {[%clk 0:02:52.8]} 11. Nd5 {[%clk 0:02:44.7]}
11... Bd6 {[%clk 0:02:47.1]} 12. Nxf6+ {[%clk 0:02:35]} 12... gxf6 {[%clk
0:02:45.5]} 13. Qc1 {[%clk 0:02:15.6]} 13... Kg7 {[%clk 0:02:41.3]} 14. Rd1
{[%clk 0:02:14.9]} 14... Qc8 {[%clk 0:02:31.8]} 15. Qe3 {[%clk 0:01:55.6]} 15...
Ne7 {[%clk 0:02:20.4]} 16. c5 {[%clk 0:01:47.4]} 16... Nf5 {[%clk 0:02:19.9]}
17. Qd3 {[%clk 0:01:40.2]} 17... e4 {[%clk 0:02:14.7]} 18. Qxe4 {[%clk
0:01:40.1]} 18... Bxc5 {[%clk 0:02:08.1]} 19. Bxf6+ {[%clk 0:01:13.5]} 19...
Kxf6 {[%clk 0:02:07.7]} 20. Qe5+ {[%clk 0:01:14]} 20... Kg6 {[%clk 0:02:05.7]}
21. Qxc5 {[%clk 0:01:14.2]} 21... Be6 {[%clk 0:01:54.9]} 22. e4 {[%clk
0:01:00.1]} 22... Nd6 {[%clk 0:01:51.7]} 23. e5 {[%clk 0:00:52.8]} 23... Nf5
{[%clk 0:01:45.9]} 24. Rac1 {[%clk 0:00:51.5]} 24... Rd8 {[%clk 0:01:39.7]} 25.
Nd4 {[%clk 0:00:42.4]} 25... Nxd4 {[%clk 0:01:35.4]} 26. Rxd4 {[%clk 0:00:43.3]}
26... Rxd4 {[%clk 0:01:35.2]} 27. Qxd4 {[%clk 0:00:44.1]} 27... c6 {[%clk
0:01:29.7]} 28. h4 {[%clk 0:00:41]} 28... Qd8 {[%clk 0:01:27.7]} 29. Qf4 {[%clk
0:00:39.9]} 29... Kg7 {[%clk 0:01:20]} 30. Bf3 {[%clk 0:00:32.8]} 30... Qe7
{[%clk 0:01:17.1]} 31. Rd1 {[%clk 0:00:33.4]} 31... a5 {[%clk 0:01:10.1]} 32.
Bg4 {[%clk 0:00:27.1]} 32... a4 {[%clk 0:01:04.6]} 33. Bxe6 {[%clk 0:00:25.3]}
33... Qxe6 {[%clk 0:01:04]} 34. Rd6 {[%clk 0:00:25.3]} 34... Qe7 {[%clk
0:00:56.3]} 35. Qxh6+ {[%clk 0:00:24.3]} 35... Kg8 {[%clk 0:00:55.5]} 36. Qf4
{[%clk 0:00:20.6]} 36... axb3 {[%clk 0:00:45.4]} 37. axb3 {[%clk 0:00:21.5]}
37... Ra1+ {[%clk 0:00:32.4]} 38. Kg2 {[%clk 0:00:21.9]} 38... Ra5 {[%clk
0:00:29.7]} 39. e6 {[%clk 0:00:16.4]} 39... fxe6 {[%clk 0:00:27.4]} 40. Qg4+
{[%clk 0:00:13.1]} 40... Kf7 {[%clk 0:00:22.2]} 41. Rd3 {[%clk 0:00:13.7]} 41...
Rf5 {[%clk 0:00:19.7]} 42. h5 {[%clk 0:00:10.8]} 42... Qf6 {[%clk 0:00:12.6]}
43. Rd7+ {[%clk 0:00:10.4]} 43... Ke8 {[%clk 0:00:13.1]} 44. Rd2 {[%clk
0:00:06.5]} 44... Rg5 {[%clk 0:00:07.2]} 45. Qa4 {[%clk 0:00:06.7]} 45... Rxh5
{[%clk 0:00:03.1]} 46. Qa8+ {[%clk 0:00:06.8]} 46... Kf7 {[%clk 0:00:03.3]} 47.
Qxb7+ {[%clk 0:00:07.4]} 47... Kg6 {[%clk 0:00:02.7]} 48. Qxc6 {[%clk 0:00:08]}
48... Rf5 {[%clk 0:00:02.3]} 49. Qe4 {[%clk 0:00:08.1]} 49... Kg7 {[%clk
0:00:02.2]} 50. Qg4+ {[%clk 0:00:08.2]} 50... Rg5 {[%clk 0:00:02]} 51. Qd4
{[%clk 0:00:07.3]} 51... e5 {[%clk 0:00:01.4]} 52. Qd7+ {[%clk 0:00:07.4]} 52...
Qf7 {[%clk 0:00:01.2]} 53. Qxf7+ {[%clk 0:00:05.4]} 53... Kxf7 {[%clk
0:00:02.1]} 54. Rd3 {[%clk 0:00:06]} 54... Rg4 {[%clk 0:00:01.8]} 55. Kf3 {[%clk
0:00:05.7]} 55... Rb4 {[%clk 0:00:01.6]} 56. Ke3 {[%clk 0:00:05.1]} 56... Kf6
{[%clk 0:00:01.9]} 57. Rc3 {[%clk 0:00:05.6]} 57... Kf5 {[%clk 0:00:02.1]} 58.
f3 {[%clk 0:00:05.5]} 58... Rb8 {[%clk 0:00:02.2]} 59. g4+ {[%clk 0:00:05.4]}
59... Kg5 {[%clk 0:00:02.6]} 60. Kf2 {[%clk 0:00:03.8]} 60... Kf4 {[%clk
0:00:02]} 61. Rc4+ {[%clk 0:00:04.2]} 61... Kg5 {[%clk 0:00:02.6]} 62. b4 {[%clk
0:00:04.5]} 62... Ra8 {[%clk 0:00:02.4]} 63. Kg3 {[%clk 0:00:04.8]} 1-0